bitfinex/quotes_SOLUSD_20250718
["timestamp","ask_amount","ask_price","bid_price","bid_amount"]
[1752837741150,6.41402311,177.5,177.46,12.45307411]
[1752837741550,5.69402311,177.5,177.46,12.45307411]
[1752837741952,0.06,177.5,177.46,13.14307411]
[1752837742561,0.06,177.5,177.43,30.68]
[1752837742562,0.06,177.5,177.48,12.45307411]
[1752837743893,13.14307411,177.49,177.42,17.48468397]
[1752837744061,12.45307411,177.48,177.43,12.45307411]
[1752837744254,12.45307411,177.48,177.42,48.10468397]
[1752837744457,13.14307411,177.48,177.43,12.45307411]
[1752837744773,12.45307411,177.46,177.41,7.8266]
[1752837745081,12.45307411,177.46,177.41,1.6089]
[1752837745250,13.14307411,177.45,177.41,16.78468397]
[1752837745456,12.45307411,177.45,177.41,16.78468397]
[1752837745762,0.69,177.44,177.41,16.78468397]
[1752837745974,0.69,177.46,177.4,16.78468397]
[1752837746172,12.45307411,177.44,177.4,16.78468397]
[1752837746351,0.69,177.43,177.38,16.78468397]
[1752837746681,13.14307411,177.43,177.38,16.78468397]
[1752837746852,18.08846436,177.45,177.4,29.23775808]
[1752837747053,12.45307411,177.44,177.4,16.78468397]
[1752837747254,12.45307411,177.43,177.38,12.45307411]
[1752837747488,12.45307411,177.43,177.39,16.78468397]
[1752837747489,0.69,177.42,177.39,16.78468397]
[1752837747658,0.69,177.42,177.38,16.78468397]
[1752837748061,12.45307411,177.43,177.38,16.78468397]
[1752837748256,13.14307411,177.43,177.38,16.78468397]
[1752837748488,13.14307411,177.43,177.38,17.48468397]
[1752837748661,5.63634314,177.42,177.38,17.48468397]
[1752837749382,18.08941725,177.42,177.38,17.48468397]
[1752837749957,18.08941725,177.42,177.38,16.78468397]
[1752837750282,6.32634314,177.42,177.38,29.23775808]
[1752837750452,5.63634314,177.42,177.38,29.93775808]
[1752837750652,12.45307411,177.44,177.39,13.15307411]
[1752837750858,0.69,177.46,177.4,0.7]
[1752837750859,0.6226807,177.46,177.4,0.7]
[1752837751060,6.25743586,177.47,177.4,13.15307411]
[1752837751262,12.45307411,177.45,177.41,12.45307411]
[1752837751480,12.45307411,177.45,177.41,13.15307411]
[1752837751655,12.45307411,177.46,177.41,13.15307411]
[1752837752057,5.63539025,177.45,177.41,13.15307411]
[1752837752276,12.45307411,177.45,177.42,0.7]
[1752837752460,18.08821591,177.46,177.42,0.7]
[1752837752663,5.6351418,177.46,177.41,12.45307411]
[1752837752869,5.6351418,177.46,177.42,29.93775808]
[1752837753275,5.63484366,177.47,177.43,13.15307411]
[1752837754068,5.63484366,177.47,177.44,0.7]
[1752837754468,12.45307411,177.48,177.44,0.7]
[1752837754959,18.08719434,177.49,177.45,0.7]
[1752837755866,18.77770023,177.48,177.44,12.45307411]
[1752837756081,6.38462612,177.48,177.44,12.45307411]
[1752837756388,5.69462612,177.48,177.44,0.7]
[1752837756882,5.69462612,177.48,177.45,0.7]
[1752837757493,0.06,177.48,177.45,0.7]
[1752837757785,0.06,177.48,177.45,13.15307411]
[1752837758564,0.06,177.48,177.46,17.48468397]
[1752837758762,0.06,177.48,177.47,47.34468397]
[1752837758958,0.06,177.5,177.47,47.34468397]
[1752837758959,0.06,177.5,177.48,16.78468397]
[1752837759159,0.06,177.5,177.49,8.35072421]
[1752837759376,0.06,177.5,177.49,9.05072421]
[1752837759867,0.06,177.5,177.49,25.83540818]
[1752837760067,0.06,177.5,177.49,31.46952841]
[1752837761202,0.06,177.5,177.49,36.14029815]
[1752837761704,0.06,177.5,177.49,66.66029815]
[1752837762091,0.06,177.5,177.49,66.64029815]
[1752837762292,0.06,177.5,177.49,36.14029815]
[1752837762809,0.06,177.5,177.49,66.64029815]
[1752837762977,0.06,177.5,177.49,71.11978098]
[1752837763620,0.06,177.5,177.49,54.16221622]
[1752837763902,0.06,177.5,177.49,23.68221622]
[1752837764103,0.06,177.5,177.49,65.90029815]
[1752837764277,0.06,177.5,177.49,65.33688613]
[1752837764473,0.06,177.5,177.49,59.7027659]
[1752837764877,0.06,177.5,177.49,65.33688613]
[1752837765078,0.06,177.5,177.49,29.9427659]
[1752837765283,0.06,177.5,177.49,29.2427659]
[1752837765480,0.06,177.5,177.49,34.87688613]
[1752837765694,0.06,177.5,177.49,29.2427659]
[1752837766903,0.06,177.5,177.49,35.57688613]
[1752837768382,0.06,177.5,177.49,23.1188042]
[1752837768584,0.06,177.5,177.49,35.57688613]
[1752837769084,0.06,177.5,177.49,65.95688613]
[1752837771101,0.06,177.5,177.49,23.1188042]
[1752837771305,0.06,177.5,177.49,65.95688613]
[1752837773406,0.06,177.5,177.49,53.4588042]
[1752837773591,0.06,177.5,177.49,65.91688613]
[1752837774713,0.06,177.5,177.49,35.57688613]
[1752837774916,0.06,177.5,177.49,65.89688613]
[1752837775299,0.06,177.5,177.49,35.57688613]
[1752837775607,0.06,177.5,177.49,65.85688613]
[1752837776713,0.06,177.5,177.49,35.57688613]
[1752837777014,0.06,177.5,177.49,65.87688613]
[1752837777515,0.06,177.5,177.49,65.85688613]
[1752837777707,0.06,177.5,177.49,35.57688613]
[1752837777903,0.06,177.5,177.49,65.83688613]
[1752837778208,0.06,177.5,177.49,35.57688613]
[1752837778413,0.06,177.5,177.49,65.83688613]
[1752837779113,0.06,177.5,177.49,53.3788042]
[1752837779301,0.06,177.53,177.52,42.78468397]
[1752837779496,0.06,177.53,177.52,85.4827659]
[1752837779909,0.06,177.53,177.52,86.1627659]
[1752837780314,0.06,177.53,177.52,73.02468397]
[1752837780610,0.06,177.53,177.52,85.4827659]
[1752837780913,0.06,177.53,177.52,85.4627659]
[1752837781107,0.06,177.53,177.52,22.41785206]
[1752837781309,0.76,177.53,177.5,12.45808193]
[1752837781615,0.7,177.52,177.51,47.00468397]
[1752837782112,0.06,177.53,177.51,59.4627659]
[1752837782295,0.06,177.53,177.52,12.45808193]
[1752837782899,0.06,177.53,177.52,55.9227659]
[1752837783206,0.06,177.53,177.52,56.2017449]
[1752837783517,0.06,177.53,177.52,56.7650617]
[1752837783718,0.06,177.53,177.52,48.98116886]
[1752837783898,0.06,177.53,177.52,56.7650617]
[1752837784216,0.06,177.62,177.57,16.78468397]
[1752837784394,0.06,177.62,177.57,54.76857681]
[1752837784589,0.06,177.62,177.57,55.44857681]
[1752837785401,0.06,177.62,177.57,61.08015872]
[1752837785820,0.06,177.62,177.57,60.40015872]
[1752837785998,0.76,177.58,177.57,46.98468397]
[1752837786504,0.76,177.58,177.57,16.78468397]
[1752837786707,16.32189284,177.58,177.48,5.63443768]
[1752837786901,7.78389284,177.54,177.49,7.78389284]
[1752837787213,0.7,177.53,177.5,16.78468397]
[1752837787412,0.7,177.53,177.51,30.2]
[1752837787604,0.7,177.52,177.51,46.98468397]
[1752837789223,0.7,177.54,177.52,16.78468397]
[1752837789596,18.09336557,177.56,177.52,16.78468397]
[1752837789793,0.76,177.58,177.55,12.46141377]
[1752837789989,0.76,177.58,177.56,16.78468397]
[1752837790193,0.06,177.58,177.57,59.40609774]
[1752837791703,0.76,177.58,177.55,46.94468397]
[1752837791894,13.22141377,177.58,177.55,16.78468397]
[1752837792204,0.7,177.57,177.55,46.94468397]
[1752837792415,13.16141377,177.57,177.48,16.78468397]
[1752837792714,0.7,177.56,177.53,16.78468397]
[1752837792916,12.46141377,177.55,177.47,6.87823067]
[1752837793102,12.46141377,177.55,177.51,16.78468397]
[1752837793298,0.7,177.54,177.51,16.78468397]
[1752837793498,0.7,177.53,177.51,46.92468397]
[1752837793726,0.7,177.52,177.51,46.92468397]
[1752837794502,0.7,177.54,177.51,46.92468397]
[1752837794918,0.7,177.54,177.52,12.46141377]
[1752837795119,0.7,177.53,177.51,46.92468397]
[1752837795325,12.46141377,177.54,177.51,46.92468397]
[1752837795326,0.7,177.52,177.51,46.92468397]
[1752837796010,0.7,177.52,177.51,46.90468397]
[1752837796393,0.7,177.54,177.51,46.90468397]
[1752837797005,0.7,177.54,177.51,16.78468397]
[1752837797307,18.0937023,177.55,177.51,16.78468397]
[1752837797308,0.7,177.53,177.52,30.1]
[1752837798005,0.7,177.55,177.52,30.1]
[1752837798202,0.7,177.54,177.52,30.1]
[1752837798517,0.7,177.55,177.53,16.78468397]
[1752837798719,0.7,177.54,177.53,16.78468397]
[1752837799034,0.7,177.56,177.53,16.78468397]
[1752837799230,0.7,177.56,177.54,30.08]
[1752837800329,0.7,177.55,177.54,46.86468397]
[1752837800520,0.06,177.58,177.54,46.86468397]
[1752837800702,0.7,177.57,177.54,46.86468397]
[1752837800902,0.7,177.57,177.54,59.32609774]
[1752837801805,0.7,177.56,177.54,46.86468397]
[1752837804139,0.74,177.58,177.54,52.49713625]
[1752837804331,0.06,177.58,177.57,16.78468397]
[1752837804502,0.06,177.58,177.57,46.78468397]
[1752837805233,0.74,177.58,177.57,30.0]
[1752837805846,0.74,177.58,177.54,5.63245228]
[1752837806139,12.46141377,177.56,177.55,30.0]
[1752837806312,0.68,177.56,177.55,30.0]
[1752837807010,13.20141377,177.58,177.55,30.0]
[1752837807213,0.74,177.58,177.56,29.98]
[1752837807631,0.06,177.58,177.57,16.78468397]
[1752837808409,0.06,177.58,177.57,22.41626588]
[1752837809724,0.74,177.58,177.57,29.96]
[1752837810216,0.06,177.58,177.57,29.96]
[1752837810424,0.06,177.58,177.57,52.37626588]
[1752837812216,0.06,177.58,177.57,64.83767965]
[1752837813030,0.06,177.58,177.57,60.15890443]
[1752837813749,0.06,177.58,177.57,60.86890443]
[1752837813934,0.06,177.58,177.57,53.64942407]
[1752837814235,0.06,177.58,177.57,61.43206262]
[1752837815926,0.06,177.58,177.57,30.19890443]
[1752837816113,0.06,177.58,177.57,60.09890443]
[1752837816325,0.06,177.58,177.57,16.78468397]
[1752837816520,0.74,177.58,177.55,24.56732252]
[1752837816735,0.74,177.58,177.56,46.68468397]
[1752837817740,0.06,177.58,177.56,60.09919482]
[1752837817940,0.06,177.58,177.56,54.46732252]
[1752837818143,0.74,177.58,177.56,54.46732252]
[1752837818446,0.68,177.57,177.56,16.78468397]
[1752837818612,0.68,177.57,177.56,46.68468397]
[1752837819238,0.06,177.58,177.56,46.68468397]
[1752837819610,0.06,177.58,177.56,60.0991421]
[1752837820121,0.74,177.58,177.56,60.0991421]
[1752837820318,0.74,177.58,177.57,46.64468397]
[1752837820646,0.06,177.58,177.57,46.64468397]
[1752837821025,0.74,177.58,177.57,46.64468397]
[1752837821641,0.74,177.58,177.57,29.86]
[1752837821933,0.74,177.58,177.55,7.78263855]
[1752837822140,8.46263855,177.57,177.51,1.5409]
[1752837822344,0.06,177.58,177.5,0.71]
[1752837822345,8.46263855,177.56,177.5,13.41622727]
[1752837822639,7.78263855,177.52,177.51,29.84]
[1752837822836,0.6226807,177.55,177.5,29.84]
[1752837823039,0.68,177.52,177.5,29.84]
[1752837823744,0.68,177.51,177.48,43.56996936]
[1752837823945,7.78263855,177.52,177.49,29.82]
[1752837824146,0.68,177.5,177.49,29.82]
[1752837824335,0.68,177.52,177.49,29.82]
[1752837824519,0.68,177.55,177.5,24.56732252]
[1752837824838,0.68,177.54,177.51,29.82]
[1752837825417,7.78263855,177.56,177.52,16.78468397]
[1752837825617,0.68,177.56,177.53,29.82]
[1752837825820,8.46263855,177.55,177.53,29.82]
[1752837826033,0.68,177.54,177.53,29.82]
[1752837826623,7.78263855,177.56,177.53,29.82]
[1752837826822,0.68,177.55,177.53,29.82]
[1752837828235,14.09430898,177.57,177.53,29.82]
[1752837828435,8.46263855,177.57,177.53,29.82]
[1752837829522,8.46263855,177.56,177.52,16.78468397]
[1752837829722,5.63163657,177.57,177.53,29.8]
[1752837829723,7.78263855,177.57,177.53,29.8]
[1752837829931,8.46263855,177.57,177.53,29.8]
[1752837830851,8.46263855,177.57,177.52,24.56732252]
[1752837831145,5.69133092,177.58,177.53,46.56468397]
[1752837831351,0.68,177.56,177.53,46.56468397]
[1752837831532,7.78263855,177.57,177.53,46.56468397]
[1752837831739,0.68,177.55,177.53,46.56468397]
[1752837832828,13.41441677,177.57,177.53,46.56468397]
[1752837833049,0.68,177.56,177.53,46.56468397]
[1752837833436,0.68,177.55,177.53,46.56468397]
[1752837833930,14.12441677,177.57,177.53,46.52468397]
[1752837834139,6.34177822,177.57,177.53,46.52468397]
[1752837834356,0.71,177.57,177.53,54.30732252]
[1752837834652,0.06,177.58,177.54,7.78263855]
[1752837834831,0.06,177.58,177.55,29.72]
[1752837835443,0.77,177.58,177.55,29.72]
[1752837835650,14.0967448,177.58,177.55,29.72]
[1752837835830,8.49263855,177.57,177.55,29.72]
[1752837836030,0.71,177.56,177.53,46.50468397]
[1752837836433,0.71,177.55,177.53,29.72]
[1752837836753,8.49263855,177.54,177.51,55.72]
[1752837836953,7.78263855,177.56,177.51,63.50263855]
[1752837837332,0.71,177.55,177.51,63.50263855]
[1752837837825,0.71,177.54,177.51,55.72]
[1752837838229,0.71,177.54,177.51,63.50263855]
[1752837838438,0.71,177.53,177.51,55.72]
[1752837838835,5.63223787,177.55,177.51,55.72]
[1752837839046,0.6226807,177.57,177.51,64.16263855]
[1752837839047,5.63196943,177.56,177.51,64.16263855]
[1752837839252,14.12460798,177.56,177.51,64.16263855]
[1752837839456,13.41460798,177.56,177.51,64.16263855]
[1752837839658,0.71,177.55,177.51,64.16263855]
[1752837840246,0.77,177.58,177.54,24.56732252]
[1752837840557,0.06,177.58,177.57,7.78263855]
[1752837840732,0.06,177.58,177.57,54.24732252]
[1752837840932,0.06,177.58,177.57,80.90732252]
[1752837841366,0.06,177.58,177.57,54.90732252]
[1752837842163,0.06,177.58,177.57,60.53890443]
[1752837842863,0.06,177.58,177.57,46.46468397]
[1752837843364,0.06,177.58,177.57,54.24732252]
[1752837843951,0.06,177.58,177.57,54.90732252]
[1752837844347,0.06,177.58,177.57,46.46468397]
[1752837844545,0.06,177.58,177.55,26.0]
[1752837844756,0.06,177.58,177.56,46.48468397]
[1752837844956,0.06,177.58,177.56,16.78468397]
[1752837845157,0.06,177.58,177.56,24.56732252]
[1752837845363,0.06,177.58,177.56,50.56732252]
[1752837846259,0.06,177.58,177.56,42.78468397]
[1752837847351,0.06,177.58,177.56,16.78468397]
[1752837847549,0.77,177.58,177.56,16.78468397]
[1752837848643,0.06,177.58,177.56,25.22732252]
[1752837848841,0.06,177.58,177.57,7.78263855]
[1752837849044,0.06,177.58,177.57,54.88732252]
[1752837849447,0.06,177.58,177.57,60.51890443]
[1752837850573,0.06,177.58,177.57,52.73626588]
[1752837850746,0.06,177.58,177.57,60.51890443]
[1752837851351,0.06,177.58,177.57,52.73626588]
[1752837851552,0.06,177.58,177.57,60.51890443]
[1752837851965,0.06,177.58,177.57,52.73626588]
[1752837852144,0.06,177.58,177.57,60.51890443]
[1752837853366,0.06,177.58,177.57,54.22732252]
[1752837853561,0.06,177.58,177.57,46.44468397]
[1752837855059,0.77,177.58,177.52,0.66]
[1752837855369,0.06,177.58,177.55,24.56732252]
[1752837855552,0.06,177.58,177.56,29.6]
[1752837856366,0.06,177.58,177.57,16.78468397]
[1752837859368,0.06,177.58,177.57,24.56732252]
[1752837859678,0.06,177.58,177.57,30.85890443]
[1752837860182,0.06,177.58,177.57,57.42206262]
[1752837862872,0.06,177.58,177.57,43.34784216]
[1752837863084,0.06,177.58,177.57,50.56732252]
[1752837863590,0.06,177.58,177.57,42.78468397]
[1752837864263,0.06,177.58,177.57,50.56732252]
[1752837864877,0.06,177.58,177.57,51.22732252]
[1752837865058,0.06,177.58,177.57,50.56732252]
[1752837865475,0.06,177.58,177.57,80.06732252]
[1752837865680,0.06,177.58,177.57,72.28468397]
[1752837866755,0.06,177.58,177.57,86.35890443]
[1752837866985,0.73,177.58,177.57,42.78468397]
[1752837867158,0.06,177.58,177.57,42.78468397]
[1752837867972,0.06,177.58,177.57,51.22732252]
[1752837868183,0.06,177.58,177.56,29.48]
[1752837868184,0.73,177.58,177.56,16.78468397]
[1752837868565,0.06,177.58,177.56,24.56732252]
[1752837868781,0.06,177.58,177.57,54.08732252]
[1752837868980,0.06,177.58,177.57,54.74732252]
[1752837869184,0.06,177.58,177.57,52.59626588]
[1752837869484,0.06,177.58,177.57,60.37890443]
[1752837870257,0.06,177.58,177.57,54.08732252]
[1752837870756,0.06,177.58,177.57,60.37890443]
[1752837871392,0.06,177.58,177.57,59.71890443]
[1752837871678,0.06,177.58,177.57,60.37890443]
[1752837872283,0.06,177.58,177.57,54.08732252]
[1752837872489,0.06,177.58,177.57,59.71890443]
[1752837872866,0.06,177.58,177.57,60.37890443]
[1752837873383,0.06,177.58,177.57,52.59626588]
[1752837873581,0.06,177.58,177.57,60.37890443]
[1752837873979,0.06,177.58,177.57,59.71890443]
[1752837874970,0.06,177.58,177.57,60.37890443]
[1752837875275,0.06,177.58,177.57,59.67890443]
[1752837875665,0.06,177.58,177.57,60.33890443]
[1752837877203,0.06,177.58,177.57,94.09890443]
[1752837877376,0.06,177.58,177.57,94.66206262]
[1752837878264,0.06,177.58,177.57,94.09890443]
[1752837879989,0.06,177.58,177.57,77.89626588]
[1752837880289,0.06,177.58,177.57,86.33890443]
[1752837882484,0.06,177.58,177.57,78.55626588]
[1752837882694,0.06,177.58,177.57,85.67890443]
[1752837883092,0.06,177.58,177.57,86.33890443]
[1752837884892,0.06,177.58,177.57,94.09890443]
[1752837885200,0.06,177.58,177.57,95.62250443]
[1752837887504,0.06,177.58,177.57,65.48250443]
[1752837887812,0.06,177.58,177.57,94.96250443]
[1752837888011,0.06,177.58,177.57,95.62250443]
[1752837889091,0.06,177.58,177.57,93.43890443]
[1752837889489,0.06,177.58,177.57,56.17626588]
[1752837889684,0.06,177.58,177.57,93.43890443]
[1752837890501,0.06,177.58,177.57,94.09890443]
[1752837898902,0.06,177.58,177.57,86.31626588]
[1752837899102,0.06,177.58,177.57,94.09890443]
[1752837901403,0.06,177.6,177.59,50.54468397]
[1752837901609,0.06,177.6,177.59,88.35041728]
[1752837901981,0.06,177.6,177.59,89.04041728]
[1752837902179,0.06,177.6,177.59,96.82305583]
[1752837902378,0.06,177.6,177.59,102.45400351]
[1752837903318,0.06,177.6,177.59,93.98136496]
[1752837903481,0.06,177.6,177.59,94.67136496]
[1752837908304,0.06,177.6,177.59,102.45400351]
[1752837911816,0.06,177.6,177.59,86.88872641]
[1752837912109,0.06,177.6,177.59,94.67136496]
[1752837912905,0.06,177.6,177.59,93.98136496]
[1752837913619,0.06,177.6,177.59,94.67136496]
[1752837915002,0.06,177.6,177.59,102.45400351]
[1752837916717,0.06,177.6,177.59,93.96136496]
[1752837917106,0.06,177.6,177.59,94.65136496]
[1752837917303,0.06,177.62,177.6,50.54468397]
[1752837917497,0.06,177.62,177.61,24.56732252]
[1752837917699,0.06,177.62,177.61,54.00732252]
[1752837918199,0.06,177.62,177.61,93.96066748]
[1752837918398,0.06,177.62,177.61,86.17802893]
[1752837918704,0.76,177.62,177.61,59.63763612]
[1752837919214,0.76,177.62,177.61,51.85499757]
[1752837919420,0.76,177.62,177.61,46.22468397]
[1752837919626,0.76,177.62,177.61,59.63763612]
[1752837920943,0.76,177.62,177.61,72.22468397]
[1752837922018,0.76,177.62,177.61,50.56732252]
[1752837922333,0.76,177.62,177.61,85.63763612]
[1752837923113,0.76,177.62,177.61,56.19763612]
[1752837923330,0.76,177.62,177.61,85.63763612]
[1752837924634,0.76,177.62,177.61,77.85499757]
[1752837924935,0.76,177.62,177.61,85.63763612]
[1752837925511,0.06,177.62,177.61,85.63763612]
[1752837925737,0.74,177.62,177.61,42.78468397]
[1752837925924,0.74,177.62,177.61,80.00732252]
[1752837926125,0.74,177.62,177.61,85.63763612]
[1752837926939,0.74,177.62,177.61,77.85499757]
[1752837927136,0.74,177.62,177.61,85.63763612]
[1752837927514,0.74,177.62,177.61,77.85499757]
[1752837927934,0.74,177.62,177.61,48.41499757]
[1752837928237,0.74,177.62,177.6,29.44]
[1752837928431,0.06,177.62,177.61,24.56732252]
[1752837929013,0.74,177.62,177.61,24.56732252]
[1752837929644,0.74,177.62,177.61,30.19763612]
[1752837930256,0.06,177.62,177.61,30.19763612]
[1752837930410,0.06,177.62,177.61,89.95763612]
[1752837931245,0.74,177.62,177.61,56.19763612]
[1752837932038,0.06,177.62,177.61,56.19763612]
[1752837932424,0.06,177.62,177.61,56.76066748]
[1752837933911,0.06,177.62,177.61,57.47066748]
[1752837935041,0.06,177.62,177.61,31.47066748]
[1752837936740,0.06,177.64,177.63,42.78468397]
[1752837936924,0.1,177.66,177.65,24.56732252]
[1752837937241,0.1,177.66,177.65,54.5502271]
[1752837937447,0.1,177.68,177.67,42.78468397]
[1752837937620,0.1,177.68,177.67,54.55016374]
[1752837937820,0.1,177.68,177.67,55.26016374]
[1752837938245,0.1,177.68,177.67,60.88857596]
[1752837939050,0.1,177.68,177.67,64.59288107]
[1752837939243,0.1,177.68,177.67,56.2474013]
[1752837939434,0.1,177.68,177.67,64.03003985]
[1752837939635,0.1,177.68,177.67,34.61003985]
[1752837939826,0.1,177.68,177.67,64.03003985]
[1752837940023,0.78,177.68,177.67,16.78468397]
[1752837940344,0.78,177.68,177.67,79.98732252]
[1752837941127,0.78,177.68,177.67,50.56732252]
[1752837941547,0.78,177.68,177.67,53.98732252]
[1752837941746,0.1,177.68,177.67,53.98732252]
[1752837942247,0.78,177.68,177.67,53.98732252]
[1752837943853,0.78,177.68,177.67,59.61573474]
[1752837944152,0.1,177.68,177.67,59.61573474]
[1752837947361,0.1,177.68,177.67,60.32573474]
[1752837950546,0.1,177.68,177.67,93.37573474]
[1752837951358,0.1,177.68,177.67,94.08573474]
[1752837951950,0.1,177.68,177.67,93.37573474]
[1752837953041,0.1,177.68,177.67,93.35573474]
[1752837953362,0.78,177.68,177.67,53.96732252]
[1752837953784,0.1,177.68,177.67,59.59573474]
[1752837955442,0.1,177.68,177.67,60.25573474]
[1752837956940,0.1,177.68,177.67,94.01573474]
[1752837959246,0.1,177.68,177.67,63.95573474]
[1752837959442,0.78,177.68,177.67,22.41309619]
[1752837959670,0.78,177.68,177.67,59.59573474]
[1752837959867,0.1,177.68,177.67,59.59573474]
[1752837960384,0.1,177.68,177.67,94.01573474]
[1752837961643,0.06,177.7,177.69,50.54468397]
[1752837961848,0.06,177.7,177.69,96.05273894]
[1752837962154,0.06,177.72,177.71,50.54468397]
[1752837962468,0.06,177.72,177.71,88.27003705]
[1752837962671,0.06,177.72,177.71,88.93003705]
[1752837963271,0.06,177.72,177.71,81.1473985]
[1752837963442,0.06,177.72,177.71,17.3473985]
[1752837963644,0.74,177.72,177.71,53.94732252]
[1752837963878,0.06,177.72,177.71,53.94732252]
[1752837964055,0.06,177.72,177.71,59.57446786]
[1752837964250,0.06,177.72,177.71,93.99446786]
[1752837965172,1e-08,177.72,177.71,93.99446786]
[1752837966970,1e-08,177.72,177.71,93.33446786]
[1752837968779,0.68000001,177.72,177.71,30.19446786]
[1752837969082,0.68000001,177.72,177.71,59.57446786]
[1752837969573,1e-08,177.72,177.71,59.57446786]
[1752837969880,1e-08,177.72,177.71,60.13718239]
[1752837970564,1e-08,177.72,177.71,51.79182931]
[1752837970765,1e-08,177.72,177.71,59.57446786]
[1752837972855,1e-08,177.72,177.71,60.13718239]
[1752837973087,1e-08,177.72,177.71,60.79718239]
[1752837973868,1e-08,177.72,177.71,52.35454384]
[1752837974076,1e-08,177.72,177.71,60.13718239]
[1752837974383,1e-08,177.72,177.71,60.79718239]
[1752837977399,0.1,177.76,177.75,42.78468397]
[1752837977572,0.1,177.76,177.75,79.92732252]
[1752837979596,0.1,177.76,177.75,85.55320156]
[1752837982183,0.1,177.76,177.75,86.21320156]
[1752837983087,0.1,177.76,177.75,85.55320156]
[1752837983770,0.1,177.76,177.75,86.26320156]
[1752837984798,0.1,177.76,177.75,85.55320156]
[1752837985103,0.1,177.76,177.75,86.26320156]
[1752837985392,0.06,177.79,177.75,100.32789916]
[1752837985583,0.06,177.79,177.78,24.56732252]
[1752837985786,0.06,177.79,177.78,59.5322522]
[1752837986372,0.06,177.79,177.78,68.02489075]
[1752837986574,0.1,177.8,177.79,16.78468397]
[1752837986879,0.1,177.8,177.79,25.83978385]
[1752837987196,0.1,177.8,177.79,25.12978385]
[1752837987789,0.1,177.8,177.79,30.75439715]
[1752837988492,0.1,177.8,177.79,22.9717586]
[1752837988690,0.1,177.8,177.79,30.75439715]
[1752837989599,0.78,177.8,177.79,60.09439715]
[1752837991081,0.1,177.8,177.79,60.09439715]
[1752837991276,0.78,177.8,177.79,60.09439715]
[1752837992200,0.1,177.8,177.79,60.09439715]
[1752837992782,0.78,177.8,177.79,60.09439715]
[1752837993089,0.63939258,177.8,177.79,60.09439715]
[1752837993299,0.06,177.83,177.82,42.78468397]
[1752837993594,0.06,177.83,177.82,79.88732252]
[1752837994204,0.06,177.83,177.82,42.78468397]
[1752837994878,0.74,177.83,177.82,42.78468397]
[1752837996605,0.74,177.83,177.82,50.56732252]
[1752837997793,0.74,177.83,177.82,42.78468397]
[1752838000310,0.74,177.83,177.82,50.56732252]
[1752838001084,0.74,177.83,177.82,56.19098689]
[1752838001486,0.74,177.83,177.82,48.40834834]
[1752838001706,0.74,177.83,177.82,42.78468397]
[1752838002001,0.74,177.83,177.81,26.0]
[1752838002208,0.74,177.83,177.82,26.0]
[1752838002807,0.74,177.83,177.82,50.56732252]
[1752838004000,0.74,177.83,177.82,24.56732252]
[1752838006986,0.74,177.83,177.82,16.78468397]
[1752838007186,0.74,177.83,177.82,24.56732252]
[1752838007410,0.74,177.83,177.81,29.3]
[1752838007709,0.74,177.83,177.82,26.0]
[1752838008215,0.74,177.83,177.82,33.78263855]
[1752838011830,0.74,177.83,177.81,26.0]
[1752838012515,0.74,177.83,177.81,33.78263855]
[1752838013113,0.74,177.83,177.82,7.78263855]
[1752838013500,0.74,177.83,177.81,33.78263855]
[1752838014601,0.74,177.83,177.81,26.0]
[1752838014914,0.74,177.83,177.81,33.78263855]
[1752838017691,0.06,177.83,177.82,7.78263855]
[1752838018292,0.78,177.83,177.82,7.78263855]